[Event "World Junior U20 Open 2018"]
[Site "Gebze"]
[Date "2018.09.10"]
[Round "6.67"]
[White "Tasdogen, Dincer"]
[Black "Piyumantha, M Sasith Nipun"]
[Result "1-0"]
[ECO "B18"]
[WhiteElo "2329"]
[BlackElo "2139"]
[Annotator "NA"]
[PlyCount "87"]
[EventDate "2018.09.05"]
[EventType "swiss"]
[EventCountry "TUR"]
[SourceTitle "playchess.com"]
[Source "ChessBase"]
[SourceQuality "1"]
[TimeControl "40/5400+30:1800+30"]

1. e4 {[%emt 0:00:30]} c6 {[%emt 0:00:30]} 2. d4 {[%emt 0:00:00]} d5 {[%emt 0:00:30]} 3. Nc3 {[%emt 0:00:00]} dxe4 {[%emt 0:00:00]} 4. Nxe4 {[%emt 0:00:00]} Bf5 {[%emt 0:00:00]} 5. Ng3 {[%emt 0:00:00]} Bg6 {[%emt 0:00:30]} 6. h4 {[%emt 0:00:30]} h6 {[%emt 0:00:00]} 7. f4 {[%emt 0:00:00]} e6 {[%emt 0:00:00]} 8. h5 {[%emt 0:00:00]} Bh7 $1 {[%emt 0:00:30]} 9. Nf3 {[%emt 0:00:00]} Nd7 {[%emt 0:00:00] LiveBook: 125 Partien} 10. Bd3 {[%emt 0:00:00]} Bxd3 {[%emt 0:00:00]} 11. Qxd3 {[%emt 0:00:30]} Ngf6 {[%emt 0:00:30]} 12. Bd2 {[%emt 0:00:30]} Qc7 {[%emt 0:00:00]} 13. O-O-O {[%emt 0:18:30]} c5 {[%emt 0:05:30] B18: Classical Caro-Kann: 4...Bf5 sidelines} 14. dxc5 {[%emt 0:03:30]} Bxc5 {[%emt 0:00:30]} 15. Ne4 {[%emt 0:00:30]} (15. Qe2 O-O 16. Ne5 Rac8 17. Kb1 Bd6 18. Bc3 Nb6 19. Bd4 Nbd5 20. Ne4 Nxe4 21. Qxe4 {0-1 (28) Mamedyarov,S (2760)-Topalov,V (2780) Nice 2008}) 15... O-O {[%emt 0:05:30]} 16. Kb1 {[%emt 0:08:30]} Nxe4 {[%emt 0:01:30]} 17. Qxe4 {[%emt 0:01:30]} Nf6 {[%emt 0:00:30]} 18. Qe2 {[%emt 0:00:30]} Rfd8 $146 {[%emt 0:04:00]} ({Predecessor:} 18... Rac8 19. Ne5 Be7 {½-½ (30) Kadziolka,B (2359)-Kasparova,T (2205) Pardubice 2006}) 19. Ne5 {[%emt 0:01:00]} Bd4 {[%emt 0:01:30]} 20. g4 {[%emt 0:08:30]} Rac8 {[%emt 0:05:30]} 21. c3 {[%emt 0:01:30]} Bxe5 {[%emt 0:01:30]} 22. fxe5 {[%emt 0:03:30]} Nh7 {[%emt 0:00:30]} 23. Bf4 {[%emt 0:05:30]} Rxd1+ {[%emt 0:06:00]} 24. Rxd1 {[%emt 0:01:30]} Rd8 $11 {[%emt 0:06:30]} 25. Rxd8+ Qxd8 26. Kc2 Qd5 27. b3 Ng5 28. c4 Qd4 29. Qe3 Qa1 {[%emt 0:52:30]} 30. a4 {[%emt 1:31:24]} Qa2+ {[%emt 0:00:30]} 31. Kc3 {[%emt 0:00:30]} Qa1+ {[%emt 0:00:30]} 32. Kb4 {[%emt 0:04:01]} a6 {[%emt 0:26:30]} 33. Bxg5 {[%emt 0:08:05]} hxg5 {[%emt 0:00:00]} 34. Kc5 {[%emt 0:00:00]} Qa3+ {[%emt 0:01:00]} 35. Kb6 {[%emt 0:00:11]} Qe7 {[%emt 0:01:30]} 36. c5 {[%emt 0:01:07]} Qd7 {[%emt 0:05:30]} 37. Qe4 {[%emt 0:00:02]} Qd1 {[%emt 0:00:00]} 38. Kxb7 {[%emt 0:01:41]} Qxb3+ {[%emt 0:00:00]} 39. Kxa6 {[%emt 0:00:08]} Qb8 {[%emt 0:00:30]} 40. Qb7 {[%emt 0:00:30]} Qxe5 {[%emt 0:00:30]} 41. c6 {[%emt 0:30:30]} Qd4 {[%emt 0:00:30]} 42. a5 {[%emt 0:00:00]} Qd3+ {[%emt 0:03:30]} 43. Ka7 {[%emt 0:00:00]} Qd5 {[%emt 0:02:30]} 44. a6 {[%emt 0:00:00]} 1-0

[Event "World Junior U20 Open 2018"]
[Site "Gebze"]
[Date "2018.09.10"]
[Round "6.68"]
[White "Kwon, Sehyun"]
[Black "Taalaibekov, Tagir"]
[Result "1-0"]
[ECO "B07"]
[WhiteElo "2129"]
[BlackElo "2291"]
[Annotator "ChessBase"]
[PlyCount "69"]
[EventDate "2018.09.05"]
[EventType "swiss"]
[EventCountry "TUR"]
[SourceTitle "playchess.com"]
[Source "ChessBase"]
[SourceQuality "1"]
[TimeControl "40/5400+30:1800+30"]

1. e4 d6 2. d4 Nf6 3. Nc3 Nbd7 4. g4 h6 5. h3 e5 6. Be3 Be7 7. Bg2 c6 8. a4 b6 9. Nge2 Qc7 10. O-O O-O 11. Ng3 Rd8 12. f4 Ba6 13. Re1 Nh7 14. Nf5 Bf8 15. Qf3 g6 16. Ng3 Bg7 17. Rad1 exf4 18. Bxf4 Ng5 19. Qe3 {[%emt 0:56:30]} Nf6 {[%emt 1:33:34]} 20. e5 {[%emt 0:15:30]} dxe5 {[%emt 0:02:20]} 21. dxe5 {[%emt 0:00:30]} Nd5 {[%emt 0:00:07]} 22. Nxd5 {[%emt 0:00:30]} cxd5 {[%emt 0:00:22]} 23. e6 {[%emt 0:10:13]} Qc4 {[%emt 0:04:27]} 24. Bxg5 {[%emt 0:03:10]} hxg5 {[%emt 0:00:05]} 25. exf7+ {[%emt 0:00:33]} Kh7 {[%emt 0:00:36]} 26. Bf1 {[%emt 0:04:52]} Qxa4 {[%emt 0:00:37]} 27. b3 {[%emt 0:00:44]} Qa3 {[%emt 0:00:30]} 28. Qxg5 {[%emt 0:00:30]} Qc5+ {[%emt 0:00:30]} 29. Kh1 {[%emt 0:00:30]} Bb7 {[%emt 0:00:43]} 30. Qh4+ {[%emt 0:02:22]} Bh6 {[%emt 0:00:30]} 31. Re7 {[%emt 0:00:30]} Rf8 {[%emt 0:00:36]} 32. Rxb7 {[%emt 0:01:37]} Qe3 {[%emt 0:00:30]} 33. Bg2 {[%emt 0:00:30]} g5 {[%emt 0:00:30]} 34. Qxh6+ {[%emt 0:00:30]} Kxh6 {[%emt 0:00:30]} 35. Nf5+ {[%emt 0:00:45]} 1-0

[Event "World Junior U20 Open 2018"]
[Site "Gebze"]
[Date "2018.09.10"]
[Round "6.70"]
[White "Kilic, Efe Mert"]
[Black "Erdogan, Anil Berk"]
[Result "1-0"]
[ECO "C11"]
[WhiteElo "2269"]
[BlackElo "2083"]
[Annotator "NA"]
[PlyCount "67"]
[EventDate "2018.09.05"]
[EventType "swiss"]
[EventCountry "TUR"]
[SourceTitle "playchess.com"]
[Source "ChessBase"]
[SourceQuality "1"]
[TimeControl "40/5400+30:1800+30"]

1. e4 {[%emt 0:00:30]} e6 {[%emt 0:00:30]} 2. d4 {[%emt 0:00:30]} d5 {[%emt 0:00:00]} 3. Nd2 {[%emt 0:00:30]} Nf6 {[%emt 0:06:00]} 4. e5 {[%emt 0:01:00]} Nfd7 {[%emt 0:00:30]} 5. c3 {[%emt 0:00:30]} c5 {[%emt 0:00:00]} 6. f4 {[%emt 0:00:30]} Nc6 {[%emt 0:00:30]} 7. Ndf3 {[%emt 0:01:30]} Qb6 {[%emt 0:04:30]} 8. a3 {[%emt 0:01:30]} Be7 {[%emt 0:04:30]} 9. Ne2 {[%emt 0:02:30]} f6 {[%emt 0:07:30]} 10. h4 {[%emt 0:19:30]} a5 {[%emt 0:17:30]} 11. b3 {[%emt 0:04:30]} a4 {[%emt 0:11:30]} 12. b4 {[%emt 0:01:30]} c4 {[%emt 0:01:30]} 13. h5 {[%emt 0:02:30]} Qc7 {[%emt 0:03:30]} 14. g4 {[%emt 0:09:30]} b5 {[%emt 0:07:30]} 15. Bh3 {[%emt 0:22:30]} Rf8 $16 {[%emt 0:09:30]} 16. Qc2 {[%emt 1:09:00]} h6 {[%emt 1:16:00]} 17. Be3 {[%emt 0:05:30]} fxe5 {[%emt 0:14:27]} 18. Nxe5 {[%emt 0:01:30]} Bh4+ {[%emt 0:03:54]} 19. Kd2 {[%emt 0:00:30]} Ndxe5 {[%emt 0:00:30]} 20. fxe5 {[%emt 0:00:00]} Ne7 {[%emt 0:02:21]} 21. Raf1 {[%emt 0:00:00]} Rg8 {[%emt 0:00:30]} 22. Nf4 {[%emt 0:00:30]} Bg5 {[%emt 0:00:30]} 23. Qh7 {[%emt 0:02:30]} Bxf4 {[%emt 0:01:57]} 24. Rxf4 {[%emt 0:00:30]} Bd7 {[%emt 0:01:03]} 25. Rhf1 {[%emt 0:00:30]} O-O-O {[%emt 0:00:02]} 26. Rf7 {[%emt 0:00:00]} Be8 {[%emt 0:00:32]} 27. Rxg7 {[%emt 0:02:00]} Bg6 {[%emt 0:01:13]} 28. hxg6 {[%emt 0:02:33]} Rh8 {[%emt 0:00:46]} 29. Rxe7 {[%emt 0:00:30]} Rxh7 {[%emt 0:00:00]} 30. Rxh7 {[%emt 0:00:54]} Qc6 {[%emt 0:00:16]} 31. Rff7 {[%emt 0:00:42]} Rg8 {[%emt 0:00:39]} 32. Rc7+ {[%emt 0:01:10]} Qxc7 {[%emt 0:00:01]} 33. Rxc7+ {[%emt 0:00:00]} Kxc7 {[%emt 0:00:40]} 34. Bxh6 {[%emt 0:00:00]} 1-0

[Event "World Junior U20 Open 2018"]
[Site "Gebze"]
[Date "2018.09.10"]
[Round "6.71"]
[White "Wong, Yinn Long"]
[Black "Gulden, Egemen"]
[Result "1/2-1/2"]
[ECO "B23"]
[WhiteElo "2261"]
[BlackElo "2068"]
[Annotator "NA"]
[PlyCount "56"]
[EventDate "2018.09.05"]
[EventType "swiss"]
[EventCountry "TUR"]
[SourceTitle "playchess.com"]
[Source "ChessBase"]
[SourceQuality "1"]
[TimeControl "40/5400+30:1800+30"]

1. e4 {[%emt 0:00:30]} c5 {[%emt 0:00:30]} 2. Nc3 {[%emt 0:00:30]} a6 {[%emt 0:01:30]} 3. f4 {[%emt 0:02:30]} b5 {[%emt 0:00:00]} 4. g3 {[%emt 0:03:00]} Bb7 {[%emt 0:00:30]} 5. Bg2 {[%emt 0:00:30]} g6 {[%emt 0:02:00]} 6. Qe2 {[%emt 0:04:30]} Bg7 {[%emt 0:04:30]} 7. Nf3 {[%emt 0:03:30]} e6 {[%emt 0:07:30]} 8. e5 {[%emt 0:03:30]} d5 {[%emt 0:00:30]} 9. exd6 {[%emt 0:15:30]} Qxd6 {[%emt 0:00:30]} 10. a4 {[%emt 0:04:30]} b4 {[%emt 0:01:30]} 11. Ne4 {[%emt 0:04:30]} Qc7 {[%emt 0:02:30]} 12. Ne5 {[%emt 0:06:30]} Ra7 {[%emt 0:21:30]} 13. d3 {[%emt 0:08:30]} ({White should play} 13. O-O $14) 13... Nf6 {[%emt 0:05:30]} 14. O-O {[%emt 0:10:30]} O-O {[%emt 0:02:30]} 15. Nc4 $11 {[%emt 0:06:30]} Nbd7 16. Be3 Raa8 {[%emt 1:07:00]} 17. Nxf6+ {[%emt 1:17:30]} Bxf6 {[%emt 0:00:30]} 18. Bxb7 {[%emt 0:00:30]} Qxb7 {[%emt 0:00:30]} 19. a5 {[%emt 0:00:30]} Bg7 {[%emt 0:02:30]} 20. Qf2 {[%emt 0:05:50]} Qd5 {[%emt 0:02:30]} 21. Rad1 {[%emt 0:00:37]} Rfd8 {[%emt 0:06:30]} 22. b3 {[%emt 0:00:36]} Bd4 {[%emt 0:01:30]} 23. Rde1 {[%emt 0:03:22]} Rab8 {[%emt 0:02:07]} 24. g4 {[%emt 0:03:28]} f6 {[%emt 0:11:40]} 25. Re2 {[%emt 0:01:43]} Rf8 {[%emt 0:01:10]} 26. Rfe1 {[%emt 0:01:57]} Bc3 {[%emt 0:01:39]} 27. Bd2 {[%emt 0:01:01]} Bd4 {[%emt 0:00:30]} 28. Be3 {[%emt 0:00:30]} Bc3 {[%emt 0:00:00]} 1/2-1/2

[Event "World Junior U20 Open 2018"]
[Site "Gebze"]
[Date "2018.09.10"]
[Round "6.72"]
[White "Zrikem, Nassim"]
[Black "Noboa, Kevin"]
[Result "0-1"]
[ECO "E14"]
[WhiteElo "2066"]
[BlackElo "2256"]
[Annotator "NA"]
[PlyCount "54"]
[EventDate "2018.09.05"]
[EventType "swiss"]
[EventCountry "TUR"]
[SourceTitle "playchess.com"]
[Source "ChessBase"]
[SourceQuality "1"]
[TimeControl "40/5400+30:1800+30"]

1. d4 {[%emt 0:00:30]} Nf6 {[%emt 0:00:30]} 2. Nf3 {[%emt 0:00:30]} e6 {[%emt 0:00:30]} 3. e3 {[%emt 0:00:00]} b6 {[%emt 0:00:00]} 4. Bd3 {[%emt 0:00:00]} Bb7 {[%emt 0:00:00]} 5. O-O {[%emt 0:00:00]} c5 {[%emt 0:00:30]} 6. c4 {[%emt 0:00:00]} Be7 {[%emt 0:02:30]} 7. Nc3 {[%emt 0:00:30]} cxd4 {[%emt 0:00:30]} 8. exd4 {[%emt 0:00:30]} d6 {[%emt 0:00:00]} 9. d5 {[%emt 0:10:30]} e5 {[%emt 0:03:00]} 10. Nd2 {[%emt 0:10:30]} O-O {[%emt 0:00:30]} 11. f4 {[%emt 0:00:30]} exf4 {[%emt 0:00:30]} 12. Nb3 {[%emt 0:20:30]} Nbd7 {[%emt 0:12:30]} 13. Bxf4 {[%emt 0:01:30]} Ne5 {[%emt 0:03:30]} 14. Nd4 {[%emt 0:16:30]} g6 {[%emt 0:05:30]} 15. Nf3 {[%emt 0:04:30]} Nfd7 {[%emt 0:08:30]} 16. Ne4 {[%emt 0:03:30]} b5 {[%emt 0:11:30]} 17. b3 {[%emt 1:23:09]} ({Better is} 17. Nxe5 $14 Nxe5 18. cxb5) 17... Re8 $11 {[%emt 1:00:30]} 18. Bxe5 {[%emt 0:00:30]} dxe5 {[%emt 0:00:30]} 19. Nc3 {[%emt 0:00:30]} Bb4 {[%emt 0:03:30]} 20. Ne4 {[%emt 0:11:24]} f5 {[%emt 0:01:30]} 21. Neg5 {[%emt 0:03:21]} e4 {[%emt 0:00:30]} 22. Ne6 {[%emt 0:00:52]} Qb6+ {[%emt 0:00:30]} 23. Kh1 {[%emt 0:00:01]} exf3 {[%emt 0:01:30]} 24. Rxf3 {[%emt 0:00:34]} Nf8 {[%emt 0:03:30]} 25. Bxf5 {[%emt 0:01:05]} gxf5 {[%emt 0:00:30]} 26. Rg3+ {[%emt 0:00:30]} Ng6 {[%emt 0:00:30]} 27. Nf4 {[%emt 0:00:30]} Re1+ {[%emt 0:00:30]} 0-1

[Event "World Junior U20 Open 2018"]
[Site "Gebze"]
[Date "2018.09.10"]
[Round "6.73"]
[White "Rodrigue-Lemieux, Shawn"]
[Black "Baylav, Can"]
[Result "1-0"]
[ECO "B53"]
[WhiteElo "2250"]
[BlackElo "2026"]
[Annotator "NA"]
[PlyCount "52"]
[EventDate "2018.09.05"]
[EventType "swiss"]
[EventCountry "TUR"]
[SourceTitle "playchess.com"]
[Source "ChessBase"]
[SourceQuality "1"]
[TimeControl "40/5400+30:1800+30"]

1. e4 {[%emt 0:00:30]} c5 {[%emt 0:00:30]} 2. Nf3 {[%emt 0:00:00]} d6 {[%emt 0:00:30]} 3. d4 {[%emt 0:00:00]} cxd4 {[%emt 0:00:00]} 4. Qxd4 {[%emt 0:00:30]} a6 {[%emt 0:00:00]} 5. c4 {[%emt 0:00:00]} Nc6 {[%emt 0:00:30]} 6. Qe3 {[%emt 0:00:00]} Nf6 {[%emt 0:00:30] B53: Sicilian: 2...d6: Lines with Qxd4} (6... Bg4 7. Nd4 g6 8. Nc3 Bg7 9. Nxc6 bxc6 10. h3 Be6 11. Be2 Nf6 12. O-O O-O 13. f4 Qa5 14. Bd2 {1-0 (50) Karjakin,S (2763)-Nepomniachtchi,I (2751) Moscow 2018}) 7. h3 {[%emt 0:00:30]} g6 {[%emt 0:01:30]} 8. Be2 {[%emt 0:00:00]} Bg7 {[%emt 0:00:30]} 9. Nc3 {[%emt 0:01:00]} O-O {[%emt 0:01:30]} 10. O-O {[%emt 0:00:00]} Nd7 {[%emt 0:02:30]} 11. b3 {[%emt 0:12:00]} Nc5 {[%emt 0:02:30]} 12. Bb2 {[%emt 0:02:30]} Qa5 {[%emt 0:01:30]} 13. Qc1 $146 {[%emt 0:02:30]} ({Predecessor:} 13. Nd1 Bxb2 14. Nxb2 {1-0 (74) Franco Aquilar,O (2169)-Rodriguez Hernandez,L (2223) Santa Clara 2015}) 13... f5 {[%emt 0:00:30]} 14. exf5 {[%emt 0:00:30]} Bxf5 {[%emt 0:05:30]} 15. Nd5 {[%emt 0:09:30]} Nd3 {[%emt 0:08:30]} 16. Bxd3 {[%emt 0:00:30]} Bxd3 {[%emt 0:00:30]} 17. Bxg7 {[%emt 0:00:00]} Kxg7 {[%emt 0:01:30]} 18. b4 {[%emt 0:00:00]} Nxb4 {[%emt 0:03:30]} 19. Qc3+ {[%emt 0:01:30]} e5 {[%emt 0:00:30]} 20. Rfe1 {[%emt 0:10:30]} Kg8 {[%emt 0:09:30]} 21. a3 {[%emt 0:07:30]} Bxc4 {[%emt 0:04:30]} 22. Ne7+ $18 {[%emt 0:01:30]} ({Less strong is} 22. Nxb4 Rac8 $18) 22... Kf7 {[%emt 0:00:30]} 23. Qxc4+ {[%emt 0:02:30]} Kxe7 {[%emt 0:00:30]} 24. axb4 {[%emt 0:00:30]} Qb5 {[%emt 0:00:30]} 25. Qh4+ {[%emt 0:00:30]} Ke8 {[%emt 0:01:30]} 26. Ra5 {[%emt 0:01:30]} Rh8 {[%emt 0:03:30]} 1-0

[Event "World Junior U20 Open 2018"]
[Site "Gebze"]
[Date "2018.09.10"]
[Round "6.74"]
[White "Eren, Ataberk"]
[Black "Akin, Kadir"]
[Result "1/2-1/2"]
[ECO "D35"]
[WhiteElo "2180"]
[BlackElo "1974"]
[Annotator "NA"]
[PlyCount "128"]
[EventDate "2018.09.05"]
[EventType "swiss"]
[EventCountry "TUR"]
[SourceTitle "playchess.com"]
[Source "ChessBase"]
[SourceQuality "1"]
[TimeControl "40/5400+30:1800+30"]

1. d4 {[%emt 0:00:30]} Nf6 {[%emt 0:00:30]} 2. c4 {[%emt 0:00:30]} e6 {[%emt 0:00:00]} 3. Nf3 {[%emt 0:00:00]} d5 {[%emt 0:00:00]} 4. Nc3 {[%emt 0:00:00]} Nbd7 {[%emt 0:00:30]} 5. Bg5 {[%emt 0:00:00]} c6 {[%emt 0:00:30]} 6. cxd5 {[%emt 0:00:00]} exd5 {[%emt 0:01:30]} 7. e3 {[%emt 0:00:30]} Be7 {[%emt 0:00:00]} 8. Bd3 {[%emt 0:00:30]} h6 {[%emt 0:06:00]} 9. Bh4 {[%emt 0:00:00]} Ne4 {[%emt 0:01:30]} 10. Bxe7 {[%emt 0:00:30]} Qxe7 {[%emt 0:00:00]} 11. Qc2 {[%emt 0:00:00]} Ndf6 {[%emt 0:06:00]} 12. O-O {[%emt 0:01:00]} O-O {[%emt 0:03:30]} 13. Rab1 {[%emt 0:00:30] D35: Damengambit (Abtauschvariante)} (13. Ne5 Nxc3 14. Qxc3 Ng4 15. Nxg4 Bxg4 16. h3 Be6 17. b4 a5 18. b5 cxb5 19. Bxb5 Rfc8 20. Qb3 Rc7 {0-1 (47) Kozlov,O (2306)-Gertsyk,N (2316) Ekaterinburg 2010}) 13... Nxc3 {[%emt 0:07:30]} 14. Qxc3 {[%emt 0:00:30]} Ne4 $146 {[%emt 0:00:30]} ({Vorgänger:} 14... Ne8 15. b4 Nd6 16. b5 cxb5 17. Bxb5 Bf5 18. Bd3 Rac8 19. Qa3 Bxd3 20. Qxd3 Rc7 21. Rfc1 Rfc8 22. Rxc7 Qxc7 {0-1 (62) Borges,G-Tournies,M Merida 1997}) 15. Qc2 {[%emt 0:00:30]} a5 {[%emt 0:00:30]} 16. Ne5 {[%emt 0:00:30]} Nf6 {[%emt 0:13:30]} 17. a3 {[%emt 0:00:30]} a4 {[%emt 0:02:30]} 18. Rbc1 {[%emt 0:00:30]} Be6 {[%emt 0:01:30]} 19. Rfe1 {[%emt 0:01:30]} Nd7 {[%emt 0:00:30]} 20. Nf3 {[%emt 0:00:30]} Rfc8 {[%emt 0:04:30]} 21. Qb1 {[%emt 0:06:00]} Qd6 {[%emt 0:02:30]} 22. h3 {[%emt 0:01:30]} b6 {[%emt 0:11:30]} 23. Rc3 {[%emt 0:04:30]} c5 {[%emt 0:02:30]} 24. Bb5 {[%emt 0:30:30]} Ra5 {[%emt 0:00:30]} 25. Bf1 {[%emt 0:00:30]} c4 {[%emt 0:02:30]} 26. Nd2 b5 {[%emt 1:10:00]} 27. e4 {[%emt 1:14:30]} dxe4 {[%emt 0:03:30]} 28. Nxe4 {[%emt 0:08:30]} Qxd4 {[%emt 0:01:30]} 29. Rd1 {[%emt 0:00:00]} Qe5 {[%emt 0:01:30]} 30. Re3 {[%emt 0:00:00]} Rc7 {[%emt 0:08:30]} 31. Qc1 {[%emt 0:01:30]} Ra8 {[%emt 0:01:35]} 32. Nd6 {[%emt 0:01:55]} Qc5 {[%emt 0:00:30]} 33. Rg3 {[%emt 0:03:33]} Kh8 {[%emt 0:01:51]} 34. Qf4 {[%emt 0:05:12]} Nf6 {[%emt 0:03:12]} 35. Nxb5 {[%emt 0:03:30]} Rb7 {[%emt 0:02:25]} 36. Nd4 {[%emt 0:00:40]} Rxb2 {[%emt 0:00:50]} 37. Nxe6 {[%emt 0:00:30]} fxe6 {[%emt 0:00:30]} 38. Qd4 {[%emt 0:02:32]} Qxd4 {[%emt 0:01:33]} 39. Rxd4 {[%emt 0:00:30]} Rb1 {[%emt 0:00:26]} 40. Rc3 {[%emt 0:00:00]} Rab8 {[%emt 0:00:00]} 41. Rdxc4 {[%emt 0:09:38]} Ra1 {[%emt 0:04:38]} 42. Rc8+ {[%emt 0:04:30]} Rxc8 {[%emt 0:00:30]} 43. Rxc8+ {[%emt 0:00:30]} Kh7 {[%emt 0:00:30]} 44. g3 {[%emt 0:05:51]} Rxa3 {[%emt 0:01:30]} 45. Ra8 {[%emt 0:01:33]} Nd5 {[%emt 0:02:30]} 46. Kg2 {[%emt 0:02:32]} Kg6 {[%emt 0:00:30]} 47. Ra6 {[%emt 0:00:43]} Kf5 {[%emt 0:00:30]} 48. Be2 $1 {[%emt 0:00:17]} Nf6 {[%emt 0:10:30]} 49. Bb5 {[%emt 0:01:21]} Ke5 {[%emt 0:09:50]} 50. Bxa4 {[%emt 0:02:46]} Nd5 {[%emt 0:00:16]} 51. Bb5 {[%emt 0:00:43]} Rxa6 {[%emt 0:00:07]} 52. Bxa6 {[%emt 0:00:51]} Kf6 {[%emt 0:00:12]} 53. Kf3 {[%emt 0:00:00]} Nc3 {[%emt 0:00:30]} 54. Bc4 {[%emt 0:00:24]} e5 {[%emt 0:00:30]} 55. Ke3 {[%emt 0:00:00]} Na4 {[%emt 0:00:16]} 56. Kf3 {[%emt 0:01:14]} Nc3 {[%emt 0:00:19]} 57. Bb3 {[%emt 0:00:11]} Kf5 {[%emt 0:00:28]} 58. Bc2+ {[%emt 0:00:20]} Ke6 $11 {[%emt 0:00:25]} 59. Kg4 {[%emt 0:00:30]} Kf6 {[%emt 0:00:00]} 60. Kh5 {[%emt 0:00:00]} Ne2 {[%emt 0:00:20]} 61. h4 {[%emt 0:00:15]} Nd4 {[%emt 0:00:13]} 62. Be4 {[%emt 0:01:07]} Ne6 {[%emt 0:00:05]} 63. Bd5 {[%emt 0:00:00]} Nc5 {[%emt 0:00:52]} 64. Kg4 {[%emt 0:01:50]} Nd3 {[%emt 0:00:39]} 1/2-1/2

[Event "World Junior U20 Open 2018"]
[Site "Gebze"]
[Date "2018.09.10"]
[Round "6.76"]
[White "Dedebas, Emre Emin"]
[Black "Helander, Benjamin"]
[Result "1/2-1/2"]
[ECO "A57"]
[WhiteElo "2334"]
[BlackElo "1994"]
[Annotator "NA"]
[PlyCount "57"]
[EventDate "2018.09.05"]
[EventType "swiss"]
[EventCountry "TUR"]
[SourceTitle "playchess.com"]
[Source "ChessBase"]
[SourceQuality "1"]
[TimeControl "40/5400+30:1800+30"]

1. d4 {[%emt 0:00:30]} Nf6 {[%emt 0:00:30]} 2. c4 {[%emt 0:00:00]} c5 {[%emt 0:00:30]} 3. d5 {[%emt 0:00:00]} b5 {[%emt 0:01:00]} 4. cxb5 {[%emt 0:00:30]} a6 {[%emt 0:00:30]} 5. b6 {[%emt 0:00:30]} e6 {[%emt 0:03:30]} 6. Nc3 {[%emt 0:12:30]} Qxb6 {[%emt 0:10:30]} 7. e4 {[%emt 0:03:30]} d6 {[%emt 0:00:30]} 8. Bc4 {[%emt 0:00:30]} Be7 {[%emt 0:09:30]} 9. dxe6 {[%emt 0:06:30]} Bxe6 {[%emt 0:01:30]} 10. Bxe6 {[%emt 0:01:30]} fxe6 {[%emt 0:00:30]} 11. Nf3 {[%emt 0:07:30]} Nc6 {[%emt 0:06:30]} 12. O-O {[%emt 0:04:30]} O-O {[%emt 0:02:30]} 13. Ng5 {[%emt 0:07:30]} Nd4 {[%emt 0:10:30]} 14. Be3 {[%emt 0:03:30]} h6 $11 {[%emt 0:09:30]} 15. Bxd4 hxg5 16. Be3 Qxb2 17. Qd3 {[%emt 1:05:30]} Ng4 {[%emt 1:21:06]} 18. Qc4 {[%emt 0:07:30]} d5 {[%emt 0:07:11]} 19. exd5 {[%emt 0:06:30]} Nxe3 {[%emt 0:04:59]} 20. fxe3 {[%emt 0:00:30]} Qb4 {[%emt 0:00:30]} 21. Qd3 {[%emt 0:03:47]} Bf6 {[%emt 0:01:01]} 22. Rac1 {[%emt 0:04:12]} Bxc3 {[%emt 0:01:07]} 23. Qxc3 {[%emt 0:00:34]} Rxf1+ {[%emt 0:02:02]} 24. Kxf1 {[%emt 0:00:06]} Rf8+ {[%emt 0:00:14]} 25. Kg1 {[%emt 0:01:14]} exd5 {[%emt 0:01:16]} 26. Qd3 {[%emt 0:05:22]} d4 {[%emt 0:00:50]} 27. exd4 {[%emt 0:04:15]} cxd4 {[%emt 0:00:30]} 28. Qc4+ {[%emt 0:00:30]} Qxc4 {[%emt 0:00:30]} 29. Rxc4 {[%emt 0:01:04]} 1/2-1/2

[Event "World Junior U20 Open 2018"]
[Site "Gebze"]
[Date "2018.09.10"]
[Round "6.77"]
[White "Akdogan, Alperen"]
[Black "Beukema, Christiaan"]
[Result "1-0"]
[ECO "E01"]
[WhiteElo "2278"]
[BlackElo "1904"]
[Annotator "NA"]
[PlyCount "61"]
[EventDate "2018.09.05"]
[EventType "swiss"]
[EventCountry "TUR"]
[SourceTitle "playchess.com"]
[Source "ChessBase"]
[SourceQuality "1"]
[TimeControl "40/5400+30:1800+30"]

1. d4 {[%emt 0:00:30]} d5 {[%emt 0:00:30]} 2. Nf3 {[%emt 0:00:30]} Nf6 {[%emt 0:00:30]} 3. c4 {[%emt 0:00:00]} e6 {[%emt 0:00:00]} 4. g3 {[%emt 0:00:30]} Bb4+ {[%emt 0:01:00]} 5. Bd2 {[%emt 0:02:00] E01: Catalan: Early deviations} Bd6 {[%emt 0:01:30]} (5... Be7 6. Bg2 O-O 7. O-O Nbd7 8. Nc3 c6 9. Bf4 dxc4 10. e4 Re8 11. a4 b6 12. d5 exd5 13. exd5 Bb7 14. a5 bxa5 15. d6 Bf8 16. Nd2 Nd5 17. Nxd5 cxd5 18. Nxc4 dxc4 19. Bxb7 {½-½ (42) Nakamura,H (2777)-Karjakin,S (2773) Saint Louis 2018}) 6. Bg2 {[%emt 0:00:30]} c6 {[%emt 0:00:30]} 7. Nc3 {[%emt 0:05:30]} dxc4 {[%emt 0:05:30]} 8. e4 $146 {[%emt 0:02:30]} ({Predecessor:} 8. Ne5 Bxe5 9. dxe5 Nd5 10. Ne4 O-O 11. Qc2 h6 12. Qxc4 b6 {½-½ (37) Flumbort,A (2446)-Orosz,A (2334) Hungary 2016}) 8... Be7 {[%emt 0:02:30]} 9. a4 {[%emt 0:05:30]} Na6 {[%emt 0:05:30]} 10. O-O {[%emt 0:00:30]} Nc7 {[%emt 0:00:30]} 11. a5 {[%emt 0:26:30]} Nb5 {[%emt 0:05:30]} 12. Nxb5 {[%emt 0:04:30]} cxb5 {[%emt 0:00:30]} 13. Qe2 {[%emt 0:06:30]} a6 {[%emt 0:03:30]} 14. Rfd1 {[%emt 0:02:30]} O-O {[%emt 0:04:30]} 15. Bf4 {[%emt 0:21:30]} Bb4 {[%emt 0:05:30]} 16. Ne5 {[%emt 0:03:30]} Nd7 {[%emt 0:51:00]} 17. d5 {[%emt 1:31:59]} Nxe5 {[%emt 0:00:30]} 18. Bxe5 {[%emt 0:00:30]} exd5 {[%emt 0:00:30]} 19. Rxd5 {[%emt 0:00:30]} Qe7 {[%emt 0:00:30]} 20. Rad1 {[%emt 0:00:30]} Be6 {[%emt 0:00:30]} 21. Bd6 {[%emt 0:00:30]} Bxd6 {[%emt 0:00:30]} 22. Rxd6 {[%emt 0:00:30]} Rad8 {[%emt 0:00:30]} 23. e5 {[%emt 0:00:30]} Bc8 {[%emt 0:00:30]} 24. Qd2 {[%emt 0:00:30]} Rxd6 {[%emt 0:00:30]} 25. exd6 {[%emt 0:00:00]} Qd7 {[%emt 0:15:30]} 26. Re1 $16 {[%emt 0:03:08]} Rd8 {[%emt 0:09:30]} 27. Re7 {[%emt 0:01:17]} Qf5 {[%emt 0:00:30]} 28. Bd5 {[%emt 0:02:15]} Be6 {[%emt 0:01:30]} 29. d7 {[%emt 0:01:34]} Kf8 {[%emt 0:01:30]} 30. Re8+ {[%emt 0:00:12]} Rxe8 {[%emt 0:00:30]} 31. Qb4+ {[%emt 0:00:06]} 1-0